{"text_format":"1","workbook":"xlsx","n_sheets":10,"sheets":["Janvier","Janv 2024","Févr 2024","Mars 2024","Avr 2024","Mai 2024","Juin 2024","synthèse","Employée","Datas"],"not_rendered":{"charts":0,"images":0,"macros":1,"external_links":0,"defined_names":18,"comments":0,"pivot_tables":0},"unopened":[],"bounds":{"document_bytes":16777216,"sheet_cells":100000,"rows_first":2000,"rows_last":500,"rows_between":2000,"halvings":0,"cell_chars":16384,"cell_head_chars":4096},"cells_cut":0,"cells_raw":0,"read":"whole","date_system":"1900"}

{"sheet":"Janvier","index":0,"n_rows":47,"n_cols":34,"rows_kept":47,"cut":false,"hidden":true,"merged":[[3,2,3,32],[1,3,1,4],[1,6,1,8],[1,10,1,11],[1,13,1,16],[1,18,1,21],[1,26,1,29]]}
[null,"Calendrier des locations"]
[null,"Clé de codage","A","Arrivée",null,"D","Départ",null,null,null,null,null,"LS","Dépot Départ/arrivée sale",null,null,null,"LP","Récup Départ/arrivée propre",null,null,null,null,null,null,"D/A","Départ et arrivée simultanée",null,null,null,"EMMA","SABINE","BENICIA","CARO"]
[null,null,null,null,null,null,null,null,null,null,null,null,null,null,null,null,null,null,null,null,null,null,null,null,null,null,null,null,null,null,null,null,null,"Entrez l’année :"]
[null,"Janvier","Dates des réservations",null,null,null,null,null,null,null,null,null,null,null,null,null,null,null,null,null,null,null,null,null,null,null,null,null,null,null,null,null,null,2023]
[null,null,{"$f":"TEXT(WEEKDAY(DATE(AnnéeCalendrier,1,1),1),\"jjj\")","v":"dim"},{"$f":"TEXT(WEEKDAY(DATE(AnnéeCalendrier,1,2),1),\"jjj\")","v":"lun"},{"$f":"TEXT(WEEKDAY(DATE(AnnéeCalendrier,1,3),1),\"jjj\")","v":"mar"},{"$f":"TEXT(WEEKDAY(DATE(AnnéeCalendrier,1,4),1),\"jjj\")","v":"mer"},{"$f":"TEXT(WEEKDAY(DATE(AnnéeCalendrier,1,5),1),\"jjj\")","v":"jeu"},{"$f":"TEXT(WEEKDAY(DATE(AnnéeCalendrier,1,6),1),\"jjj\")","v":"ven"},{"$f":"TEXT(WEEKDAY(DATE(AnnéeCalendrier,1,7),1),\"jjj\")","v":"sam"},{"$f":"TEXT(WEEKDAY(DATE(AnnéeCalendrier,1,8),1),\"jjj\")","v":"dim"},{"$f":"TEXT(WEEKDAY(DATE(AnnéeCalendrier,1,9),1),\"jjj\")","v":"lun"},{"$f":"TEXT(WEEKDAY(DATE(AnnéeCalendrier,1,10),1),\"jjj\")","v":"mar"},{"$f":"TEXT(WEEKDAY(DATE(AnnéeCalendrier,1,11),1),\"jjj\")","v":"mer"},{"$f":"TEXT(WEEKDAY(DATE(AnnéeCalendrier,1,12),1),\"jjj\")","v":"jeu"},{"$f":"TEXT(WEEKDAY(DATE(AnnéeCalendrier,1,13),1),\"jjj\")","v":"ven"},{"$f":"TEXT(WEEKDAY(DATE(AnnéeCalendrier,1,14),1),\"jjj\")","v":"sam"},{"$f":"TEXT(WEEKDAY(DATE(AnnéeCalendrier,1,15),1),\"jjj\")","v":"dim"},{"$f":"TEXT(WEEKDAY(DATE(AnnéeCalendrier,1,16),1),\"jjj\")","v":"lun"},{"$f":"TEXT(WEEKDAY(DATE(AnnéeCalendrier,1,17),1),\"jjj\")","v":"mar"},{"$f":"TEXT(WEEKDAY(DATE(AnnéeCalendrier,1,18),1),\"jjj\")","v":"mer"},{"$f":"TEXT(WEEKDAY(DATE(AnnéeCalendrier,1,19),1),\"jjj\")","v":"jeu"},{"$f":"TEXT(WEEKDAY(DATE(AnnéeCalendrier,1,20),1),\"jjj\")","v":"ven"},{"$f":"TEXT(WEEKDAY(DATE(AnnéeCalendrier,1,21),1),\"jjj\")","v":"sam"},{"$f":"TEXT(WEEKDAY(DATE(AnnéeCalendrier,1,22),1),\"jjj\")","v":"dim"},{"$f":"TEXT(WEEKDAY(DATE(AnnéeCalendrier,1,23),1),\"jjj\")","v":"lun"},{"$f":"TEXT(WEEKDAY(DATE(AnnéeCalendrier,1,24),1),\"jjj\")","v":"mar"},{"$f":"TEXT(WEEKDAY(DATE(AnnéeCalendrier,1,25),1),\"jjj\")","v":"mer"},{"$f":"TEXT(WEEKDAY(DATE(AnnéeCalendrier,1,26),1),\"jjj\")","v":"jeu"},{"$f":"TEXT(WEEKDAY(DATE(AnnéeCalendrier,1,27),1),\"jjj\")","v":"ven"},{"$f":"TEXT(WEEKDAY(DATE(AnnéeCalendrier,1,28),1),\"jjj\")","v":"sam"},{"$f":"TEXT(WEEKDAY(DATE(AnnéeCalendrier,1,29),1),\"jjj\")","v":"dim"},{"$f":"TEXT(WEEKDAY(DATE(AnnéeCalendrier,1,30),1),\"jjj\")","v":"lun"},{"$f":"TEXT(WEEKDAY(DATE(AnnéeCalendrier,1,31),1),\"jjj\")","v":"mar"}]
[null,"Nom du logement","1","2","3","4","5","6","7","8","9","10","11","12","13","14","15","16","17","18","19","20","21","22","23","24","25","26","27","28","29","30","31","Total des jours"]
[null,null,null,null,null,null,null,null,null,null,null,null,null,null,null,null,null,null,null,null,null,null,null,null,null,null,null,null,null,null,null,null,null,{"$f":"COUNTA(#REF!)","v":1}]
[null,null,null,null,null,null,null,null,null,null,null,null,null,null,null,null,null,null,null,null,null,null,null,null,null,null,null,null,null,null,null,null,null,{"$f":"COUNTA(#REF!)","v":1}]
[null,null,null,null,null,null,null,null,null,null,null,null,null,null,null,null,null,null,null,null,null,null,null,null,null,null,null,null,null,null,null,null,null,{"$f":"COUNTA(#REF!)","v":1}]
[null,null,null,null,null,null,null,null,null,null,null,null,null,null,null,null,null,null,null,null,null,null,null,null,null,null,null,null,null,null,null,null,null,{"$f":"COUNTA(#REF!)","v":1}]
[null,null,null,null,null,null,null,null,null,null,null,null,null,null,null,null,null,null,null,null,null,null,null,null,null,null,null,null,null,null,null,null,null,{"$f":"COUNTA(#REF!)","v":1}]
[null,null,null,null,null,null,null,null,null,null,null,null,null,null,null,null,null,null,null,null,null,null,null,null,null,null,null,null,null,null,null,null,null,{"$f":"COUNTA(#REF!)","v":1}]
[null,null,null,null,null,null,null,null,null,null,null,null,null,null,null,null,null,null,null,null,null,null,null,null,null,null,null,null,null,null,null,null,null,{"$f":"COUNTA(#REF!)","v":1}]
[null,null,null,null,null,null,null,null,null,null,null,null,null,null,null,null,null,null,null,null,null,null,null,null,null,null,null,null,null,null,null,null,null,{"$f":"COUNTA(#REF!)","v":1}]
[null,null,null,null,null,null,null,null,null,null,null,null,null,null,null,null,null,null,null,null,null,null,null,null,null,null,null,null,null,null,null,null,null,{"$f":"COUNTA(#REF!)","v":1}]
[null,null,null,null,null,null,null,null,null,null,null,null,null,null,null,null,null,null,null,null,null,null,null,null,null,null,null,null,null,null,null,null,null,{"$f":"COUNTA(#REF!)","v":1}]
[null,null,null,null,null,null,null,null,null,null,null,null,null,null,null,null,null,null,null,null,null,null,null,null,null,null,null,null,null,null,null,null,null,{"$f":"COUNTA(#REF!)","v":1}]
[null,null,null,null,null,null,null,null,null,null,null,null,null,null,null,null,null,null,null,null,null,null,null,null,null,null,null,null,null,null,null,null,null,{"$f":"COUNTA(#REF!)","v":1}]
[null,null,null,null,null,null,null,null,null,null,null,null,null,null,null,null,null,null,null,null,null,null,null,null,null,null,null,null,null,null,null,null,null,{"$f":"COUNTA(#REF!)","v":1}]
[null,null,null,null,null,null,null,null,null,null,null,null,null,null,null,null,null,null,null,null,null,null,null,null,null,null,null,null,null,null,null,null,null,{"$f":"COUNTA(#REF!)","v":1}]
[null,null,null,null,null,null,null,null,null,null,null,null,null,null,null,null,null,null,null,null,null,null,null,null,null,null,null,null,null,null,null,null,null,{"$f":"COUNTA(#REF!)","v":1}]
[null,null,null,null,null,null,null,null,null,null,null,null,null,null,null,null,null,null,null,null,null,null,null,null,null,null,null,null,null,null,null,null,null,{"$f":"COUNTA(#REF!)","v":1}]
[null,null,null,null,null,null,null,null,null,null,null,null,null,null,null,null,null,null,null,null,null,null,null,null,null,null,null,null,null,null,null,null,null,{"$f":"COUNTA(#REF!)","v":1}]
[null,null,null,null,null,null,null,null,null,null,null,null,null,null,null,null,null,null,null,null,null,null,null,null,null,null,null,null,null,null,null,null,null,{"$f":"COUNTA(#REF!)","v":1}]
[null,null,null,null,null,null,null,null,null,null,null,null,null,null,null,null,null,null,null,null,null,null,null,null,null,null,null,null,null,null,null,null,null,{"$f":"COUNTA(#REF!)","v":1}]
[null,null,null,null,null,null,null,null,null,null,null,null,null,null,null,null,null,null,null,null,null,null,null,null,null,null,null,null,null,null,null,null,null,{"$f":"COUNTA(#REF!)","v":1}]
[null,null,null,null,null,null,null,null,null,null,null,null,null,null,null,null,null,null,null,null,null,null,null,null,null,null,null,null,null,null,null,null,null,{"$f":"COUNTA(#REF!)","v":1}]
[null,null,null,null,null,null,null,null,null,null,null,null,null,null,null,null,null,null,null,null,null,null,null,null,null,null,null,null,null,null,null,null,null,{"$f":"COUNTA(#REF!)","v":1}]
[null,null,null,null,null,null,null,null,null,null,null,null,null,null,null,null,null,null,null,null,null,null,null,null,null,null,null,null,null,null,null,null,null,{"$f":"COUNTA(#REF!)","v":1}]
[null,null,null,null,null,null,null,null,null,null,null,null,null,null,null,null,null,null,null,null,null,null,null,null,null,null,null,null,null,null,null,null,null,{"$f":"COUNTA(#REF!)","v":1}]
[null,null,null,null,null,null,null,null,null,null,null,null,null,null,null,null,null,null,null,null,null,null,null,null,null,null,null,null,null,null,null,null,null,{"$f":"COUNTA(#REF!)","v":1}]
[null,null,null,null,null,null,null,null,null,null,null,null,null,null,null,null,null,null,null,null,null,null,null,null,null,null,null,null,null,null,null,null,null,{"$f":"COUNTA(#REF!)","v":1}]
[null,null,null,null,null,null,null,null,null,null,null,null,null,null,null,null,null,null,null,null,null,null,null,null,null,null,null,null,null,null,null,null,null,{"$f":"COUNTA(#REF!)","v":1}]
[null,null,null,null,null,null,null,null,null,null,null,null,null,null,null,null,null,null,null,null,null,null,null,null,null,null,null,null,null,null,null,null,null,{"$f":"COUNTA(#REF!)","v":1}]
[null,null,null,null,null,null,null,null,null,null,null,null,null,null,null,null,null,null,null,null,null,null,null,null,null,null,null,null,null,null,null,null,null,{"$f":"COUNTA(#REF!)","v":1}]
[null,null,null,null,null,null,null,null,null,null,null,null,null,null,null,null,null,null,null,null,null,null,null,null,null,null,null,null,null,null,null,null,null,{"$f":"COUNTA(#REF!)","v":1}]
[null,null,null,null,null,null,null,null,null,null,null,null,null,null,null,null,null,null,null,null,null,null,null,null,null,null,null,null,null,null,null,null,null,{"$f":"COUNTA(#REF!)","v":1}]
[null,null,null,null,null,null,null,null,null,null,null,null,null,null,null,null,null,null,null,null,null,null,null,null,null,null,null,null,null,null,null,null,null,{"$f":"COUNTA(#REF!)","v":1}]
[null,null,null,null,null,null,null,null,null,null,null,null,null,null,null,null,null,null,null,null,null,null,null,null,null,null,null,null,null,null,null,null,null,{"$f":"COUNTA(#REF!)","v":1}]
[null,null,null,null,null,null,null,null,null,null,null,null,null,null,null,null,null,null,null,null,null,null,null,null,null,null,null,null,null,null,null,null,null,{"$f":"COUNTA(#REF!)","v":1}]
[null,null,null,null,null,null,null,null,null,null,null,null,null,null,null,null,null,null,null,null,null,null,null,null,null,null,null,null,null,null,null,null,null,{"$f":"COUNTA(#REF!)","v":1}]
[null,null,null,null,null,null,null,null,null,null,null,null,null,null,null,null,null,null,null,null,null,null,null,null,null,null,null,null,null,null,null,null,null,{"$f":"COUNTA(#REF!)","v":1}]
[null,null,null,null,null,null,null,null,null,null,null,null,null,null,null,null,null,null,null,null,null,null,null,null,null,null,null,null,null,null,null,null,null,{"$f":"COUNTA(#REF!)","v":1}]
[null,null,null,null,null,null,null,null,null,null,null,null,null,null,null,null,null,null,null,null,null,null,null,null,null,null,null,null,null,null,null,null,null,{"$f":"COUNTA(#REF!)","v":1}]
[null,null,null,null,null,null,null,null,null,null,null,null,null,null,null,null,null,null,null,null,null,null,null,null,null,null,null,null,null,null,null,null,null,{"$f":"COUNTA(#REF!)","v":1}]
[null,null,null,null,null,null,null,null,null,null,null,null,null,null,null,null,null,null,null,null,null,null,null,null,null,null,null,null,null,null,null,null,null,{"$f":"COUNTA(#REF!)","v":1}]
[null,null,{"$f":"SUBTOTAL(103,Janvier!$C$7:$C$46)","v":0},{"$f":"SUBTOTAL(103,Janvier!$D$7:$D$46)","v":0},{"$f":"SUBTOTAL(103,Janvier!$E$7:$E$46)","v":0},{"$f":"SUBTOTAL(103,Janvier!$F$7:$F$46)","v":0},{"$f":"SUBTOTAL(103,Janvier!$G$7:$G$46)","v":0},{"$f":"SUBTOTAL(103,Janvier!$H$7:$H$46)","v":0},{"$f":"SUBTOTAL(103,Janvier!$I$7:$I$46)","v":0},{"$f":"SUBTOTAL(103,Janvier!$J$7:$J$46)","v":0},{"$f":"SUBTOTAL(103,Janvier!$K$7:$K$46)","v":0},{"$f":"SUBTOTAL(103,Janvier!$L$7:$L$46)","v":0},{"$f":"SUBTOTAL(103,Janvier!$M$7:$M$46)","v":0},{"$f":"SUBTOTAL(103,Janvier!$N$7:$N$46)","v":0},{"$f":"SUBTOTAL(103,Janvier!$O$7:$O$46)","v":0},{"$f":"SUBTOTAL(103,Janvier!$P$7:$P$46)","v":0},{"$f":"SUBTOTAL(103,Janvier!$Q$7:$Q$46)","v":0},{"$f":"SUBTOTAL(103,Janvier!$R$7:$R$46)","v":0},{"$f":"SUBTOTAL(103,Janvier!$S$7:$S$46)","v":0},{"$f":"SUBTOTAL(103,Janvier!$T$7:$T$46)","v":0},{"$f":"SUBTOTAL(103,Janvier!$U$7:$U$46)","v":0},{"$f":"SUBTOTAL(103,Janvier!$V$7:$V$46)","v":0},{"$f":"SUBTOTAL(103,Janvier!$W$7:$W$46)","v":0},{"$f":"SUBTOTAL(103,Janvier!$X$7:$X$46)","v":0},{"$f":"SUBTOTAL(103,Janvier!$Y$7:$Y$46)","v":0},{"$f":"SUBTOTAL(103,Janvier!$Z$7:$Z$46)","v":0},{"$f":"SUBTOTAL(103,Janvier!$AA$7:$AA$46)","v":0},{"$f":"SUBTOTAL(103,Janvier!$AB$7:$AB$46)","v":0},{"$f":"SUBTOTAL(103,Janvier!$AC$7:$AC$46)","v":0},{"$f":"SUBTOTAL(103,Janvier!$AD$7:$AD$46)","v":0},{"$f":"SUBTOTAL(103,Janvier!$AE$7:$AE$46)","v":0},{"$f":"SUBTOTAL(103,Janvier!$AF$7:$AF$46)","v":0},{"$f":"SUBTOTAL(103,Janvier!$AG$7:$AG$46)","v":0},{"$f":"SUBTOTAL(109,Janvier[Total des jours])","v":40}]

{"sheet":"Janv 2024","index":1,"n_rows":54,"n_cols":33,"rows_kept":54,"cut":false,"hidden":false,"merged":[[3,2,3,32],[0,0,0,1],[1,0,1,1],[1,3,1,4],[1,6,1,8],[1,10,1,13],[1,15,1,17],[1,18,1,20],[1,21,1,23],[1,24,1,26],[1,27,1,29]]}
["Calendrier des locations"]
["3 codes ; puis prénoms des femmes de ménage :",null,"A","Arrivée",null,"D","Départ",null,null,"D/A","Départ / Arrivée\nsimultanés",null,null,null,null,"Caro",null,null,"Sabine",null,null,"Bénicia",null,null,"Laurène",null,null,"Raïssa"]
[]
["Janvier",{"$f":"AnnéeCalendrier24","v":2024},"Dates des réservations"]
[null,null,{"$f":"TEXT(WEEKDAY(DATE($B4,1,C6),1),\"jjj\")","v":"lun"},{"$f":"TEXT(WEEKDAY(DATE($B4,1,D6),1),\"jjj\")","v":"mar"},"mer","jeu","ven","sam","dim","lun","mar","mer","jeu","ven","sam","dim","lun","mar","mer","jeu","ven","sam","dim","lun","mar","mer","jeu","ven","sam","dim","lun","mar","mer"]
["Nom du logement","Colonne1","1","2","3","4","5","6","7","8","9","10","11","12","13","14","15","16","17","18","19","20","21","22","23","24","25","26","27","28","29","30","31"]
["Logement 1",null,null,null,null,null,null,null,null,"D","A",null,null,null,null,null,null,null,null,null,null,null,null,null,null,null,null,null,null,null,null,"D"]
[null,"Ménage"]
[null,"Gestion"]
[null,"Travaux"]
["Logement 2",null,"A","D",null,"A",null,null,null,null,"D/A",null,null,null,null,null,null,null,null,null,"D",null,"A"]
[null,"Ménage"]
[null,"Gestion"]
[null,"Travaux"]
["Logement 3",null,null,"D/A",null,null,null,null,null,null,null,null,null,null,null,null,null,null,null,null,null,"D","A",null,null,null,null,"D","A",null,null,null,"D"]
[null,"Ménage"]
[null,"Gestion"]
[null,"Travaux"]
["Logement 4",null,null,null,null,"D/A",null,null,null,null,null,null,null,null,null,"D",null,null,null,null,null,"A"]
[null,"Ménage"]
[null,"Gestion"]
[null,"Travaux"]
["Logement 5",null,null,null,null,null,null,null,null,null,null,null,null,null,null,null,null,null,null,null,null,null,null,null,null,null,null,"A",null,null,null,null,"D"]
[null,"Ménage"]
[null,"Gestion"]
[null,"Travaux"]
["Logement 6",null,null,null,null,null,null,null,null,null,null,null,null,null,null,null,"A",null,null,null,null,"D",null,null,null,null,null,null,null,null,null,"A"]
[null,"Ménage"]
[null,"Gestion"]
[null,"Travaux"]
["Logement 7"]
[null,"Ménage"]
[null,"Gestion"]
[null,"Travaux"]
["Logement 8",null,null,null,null,null,null,null,null,null,null,null,null,null,null,"D",null,null,null,null,null,null,null,"A"]
[null,"Ménage"]
[null,"Gestion"]
[null,"Travaux"]
["Logement 9",null,null,null,null,"D",null,"A",null,null,null,"D",null,null,"A",null,null,null,null,null,null,"D",null,null,null,null,null,null,null,"A"]
[null,"Ménage"]
[null,"Gestion"]
[null,"Travaux"]
["Logement 10",null,null,null,null,null,"D/A",null,null,null,null,null,null,"D",null,null,"A"]
[null,"Ménage"]
[null,"Gestion"]
[null,"Travaux"]
["Logement 11",null,null,null,"D",null,null,"A",null,null,null,null,null,"D","A",null,null,null,null,"D",null,null,"A"]
[null,"Ménage"]
[null,"Gestion"]
[null,"Travaux",null,null,null,null,"demo ouisnet"]
["Logement 12"]
[null,"Ménage"]
[null,"Gestion"]
[null,"Travaux"]

{"sheet":"Févr 2024","index":2,"n_rows":54,"n_cols":31,"rows_kept":54,"cut":false,"hidden":false,"merged":[[0,0,0,1],[1,0,1,1],[1,3,1,4],[1,6,1,8],[1,10,1,13],[3,2,3,30],[1,27,1,29],[1,24,1,26],[1,21,1,23],[1,18,1,20],[1,15,1,17]]}
["Calendrier des locations"]
["3 codes ; puis prénoms des femmes de ménage :",null,"A","Arrivée",null,"D","Départ",null,null,"D/A","Départ / Arrivée\nsimultanés",null,null,null,null,"Caro",null,null,"Sabine",null,null,"Bénicia",null,null,"Laurène",null,null,"Raïssa"]
[]
["Février",{"$f":"AnnéeCalendrier24","v":2024},"Dates des réservations"]
[null,null,{"$f":"TEXT(WEEKDAY(DATE($B4,2,C6),1),\"jjj\")","v":"jeu"},{"$f":"TEXT(WEEKDAY(DATE($B4,2,D6),1),\"jjj\")","v":"ven"},"sam","dim","lun","mar","mer","jeu","ven","sam","dim","lun","mar","mer","jeu","ven","sam","dim","lun","mar","mer","jeu","ven","sam","dim","lun","mar","mer","jeu"]
["Nom du logement","Colonne1","1","2","3","4","5","6","7","8","9","10","11","12","13","14","15","16","17","18","19","20","21","22","23","24","25","26","27","28",29]
["Logement 1",null,null,null,null,null,null,null,null,"D","A"]
[null,"Ménage"]
[null,"Gestion"]
[null,"Travaux"]
["Logement 2",null,"A","D",null,"A",null,null,null,null,"D/A",null,null,null,null,null,null,null,null,null,"D",null,"A"]
[null,"Ménage"]
[null,"Gestion"]
[null,"Travaux"]
["Logement 3",null,null,"D/A",null,null,null,null,null,null,null,null,null,null,null,null,null,null,null,null,null,"D","A",null,null,null,null,"D","A"]
[null,"Ménage"]
[null,"Gestion"]
[null,"Travaux"]
["Logement 4",null,null,null,null,"D/A",null,null,null,null,null,null,null,null,null,"D",null,null,null,null,null,"A"]
[null,"Ménage"]
[null,"Gestion"]
[null,"Travaux"]
["Logement 5",null,null,null,null,null,null,null,null,null,null,null,null,null,null,null,null,null,null,null,null,null,null,null,null,null,null,"A"]
[null,"Ménage"]
[null,"Gestion"]
[null,"Travaux"]
["Logement 6",null,null,null,null,null,null,null,null,null,null,null,null,null,null,null,"A",null,null,null,null,"D"]
[null,"Ménage"]
[null,"Gestion"]
[null,"Travaux"]
["Logement 7"]
[null,"Ménage"]
[null,"Gestion"]
[null,"Travaux"]
["Logement 8",null,null,null,null,null,null,null,null,null,null,null,null,null,null,"D",null,null,null,null,null,null,null,"A"]
[null,"Ménage"]
[null,"Gestion"]
[null,"Travaux"]
["Logement 9",null,null,null,null,"D",null,"A",null,null,null,"D",null,null,"A",null,null,null,null,null,null,"D",null,null,null,null,null,null,null,"A"]
[null,"Ménage"]
[null,"Gestion"]
[null,"Travaux"]
["Logement 10",null,null,null,null,null,"D/A",null,null,null,null,null,null,"D",null,null,"A"]
[null,"Ménage"]
[null,"Gestion"]
[null,"Travaux"]
["Logement 11",null,null,null,"D",null,null,"A",null,null,null,null,null,"D","A",null,null,null,null,"D",null,null,"A"]
[null,"Ménage"]
[null,"Gestion"]
[null,"Travaux",null,null,null,null,"demo ouisnet"]
["Logement 12"]
[null,"Ménage"]
[null,"Gestion"]
[null,"Travaux"]

{"sheet":"Mars 2024","index":3,"n_rows":54,"n_cols":33,"rows_kept":54,"cut":false,"hidden":false,"merged":[[3,2,3,32],[1,15,1,17],[1,18,1,20],[1,21,1,23],[1,24,1,26],[1,27,1,29],[0,0,0,1],[1,0,1,1],[1,3,1,4],[1,6,1,8],[1,10,1,13]]}
["Calendrier des locations"]
["3 codes ; puis prénoms des femmes de ménage :",null,"A","Arrivée",null,"D","Départ",null,null,"D/A","Départ / Arrivée\nsimultanés",null,null,null,null,"Caro",null,null,"Sabine",null,null,"Bénicia",null,null,"Laurène",null,null,"Raïssa"]
[]
["Mars",{"$f":"AnnéeCalendrier24","v":2024},"Dates des réservations"]
[null,null,{"$f":"TEXT(WEEKDAY(DATE($B4,3,C6),1),\"jjj\")","v":"ven"},{"$f":"TEXT(WEEKDAY(DATE($B4,3,D6),1),\"jjj\")","v":"sam"},"dim","lun","mar","mer","jeu","ven","sam","dim","lun","mar","mer","jeu","ven","sam","dim","lun","mar","mer","jeu","ven","sam","dim","lun","mar","mer","jeu","ven","sam","dim"]
["Nom du logement","Colonne1","1","2","3","4","5","6","7","8","9","10","11","12","13","14","15","16","17","18","19","20","21","22","23","24","25","26","27","28","29","30","31"]
["Logement 1",null,null,null,null,null,null,null,null,"D","A",null,null,null,null,null,null,null,null,null,null,null,null,null,null,null,null,null,null,null,null,"D"]
[null,"Ménage"]
[null,"Gestion"]
[null,"Travaux"]
["Logement 2",null,"A","D",null,"A",null,null,null,null,"D/A",null,null,null,null,null,null,null,null,null,"D",null,"A"]
[null,"Ménage"]
[null,"Gestion"]
[null,"Travaux"]
["Logement 3",null,null,"D/A",null,null,null,null,null,null,null,null,null,null,null,null,null,null,null,null,null,"D","A",null,null,null,null,"D","A",null,null,null,"D"]
[null,"Ménage"]
[null,"Gestion"]
[null,"Travaux"]
["Logement 4",null,null,null,null,"D/A",null,null,null,null,null,null,null,null,null,"D",null,null,null,null,null,"A"]
[null,"Ménage"]
[null,"Gestion"]
[null,"Travaux"]
["Logement 5",null,null,null,null,null,null,null,null,null,null,null,null,null,null,null,null,null,null,null,null,null,null,null,null,null,null,"A",null,null,null,null,"D"]
[null,"Ménage"]
[null,"Gestion"]
[null,"Travaux"]
["Logement 6",null,null,null,null,null,null,null,null,null,null,null,null,null,null,null,"A",null,null,null,null,"D",null,null,null,null,null,null,null,null,null,"A"]
[null,"Ménage"]
[null,"Gestion"]
[null,"Travaux"]
["Logement 7"]
[null,"Ménage"]
[null,"Gestion"]
[null,"Travaux"]
["Logement 8",null,null,null,null,null,null,null,null,null,null,null,null,null,null,"D",null,null,null,null,null,null,null,"A"]
[null,"Ménage"]
[null,"Gestion"]
[null,"Travaux"]
["Logement 9",null,null,null,null,"D",null,"A",null,null,null,"D",null,null,"A",null,null,null,null,null,null,"D",null,null,null,null,null,null,null,"A"]
[null,"Ménage"]
[null,"Gestion"]
[null,"Travaux"]
["Logement 10",null,null,null,null,null,"D/A",null,null,null,null,null,null,"D",null,null,"A"]
[null,"Ménage"]
[null,"Gestion"]
[null,"Travaux"]
["Logement 11",null,null,null,"D",null,null,"A",null,null,null,null,null,"D","A",null,null,null,null,"D",null,null,"A"]
[null,"Ménage"]
[null,"Gestion"]
[null,"Travaux",null,null,null,null,"demo ouisnet"]
["Logement 12"]
[null,"Ménage"]
[null,"Gestion"]
[null,"Travaux"]

{"sheet":"Avr 2024","index":4,"n_rows":54,"n_cols":32,"rows_kept":54,"cut":false,"hidden":false,"merged":[[3,2,3,31],[1,15,1,17],[1,18,1,20],[1,21,1,23],[1,24,1,26],[1,27,1,29],[0,0,0,1],[1,0,1,1],[1,3,1,4],[1,6,1,8],[1,10,1,13]]}
["Calendrier des locations"]
["3 codes ; puis prénoms des femmes de ménage :",null,"A","Arrivée",null,"D","Départ",null,null,"D/A","Départ / Arrivée\nsimultanés",null,null,null,null,"Caro",null,null,"Sabine",null,null,"Bénicia",null,null,"Laurène",null,null,"Raïssa"]
[]
["Avril",{"$f":"AnnéeCalendrier24","v":2024},"Dates des réservations"]
[null,null,{"$f":"TEXT(WEEKDAY(DATE($B4,4,C6),1),\"jjj\")","v":"lun"},{"$f":"TEXT(WEEKDAY(DATE($B4,4,D6),1),\"jjj\")","v":"mar"},"mer","jeu","ven","sam","dim","lun","mar","mer","jeu","ven","sam","dim","lun","mar","mer","jeu","ven","sam","dim","lun","mar","mer","jeu","ven","sam","dim","lun","mar"]
["Nom du logement","Colonne1","1","2","3","4","5","6","7","8","9","10","11","12","13","14","15","16","17","18","19","20","21","22","23","24","25","26","27","28","29","30"]
["Logement 1",null,null,null,null,null,null,null,null,"D","A",null,null,null,null,null,null,null,null,null,null,null,null,null,null,null,null,null,null,null,null,"D"]
[null,"Ménage"]
[null,"Gestion"]
[null,"Travaux"]
["Logement 2",null,"A","D",null,"A",null,null,null,null,"D/A",null,null,null,null,null,null,null,null,null,"D",null,"A"]
[null,"Ménage"]
[null,"Gestion"]
[null,"Travaux"]
["Logement 3",null,null,"D/A",null,null,null,null,null,null,null,null,null,null,null,null,null,null,null,null,null,"D","A",null,null,null,null,"D","A"]
[null,"Ménage"]
[null,"Gestion"]
[null,"Travaux"]
["Logement 4",null,null,null,null,"D/A",null,null,null,null,null,null,null,null,null,"D",null,null,null,null,null,"A"]
[null,"Ménage"]
[null,"Gestion"]
[null,"Travaux"]
["Logement 5",null,null,null,null,null,null,null,null,null,null,null,null,null,null,null,null,null,null,null,null,null,null,null,null,null,null,"A"]
[null,"Ménage"]
[null,"Gestion"]
[null,"Travaux"]
["Logement 6",null,null,null,null,null,null,null,null,null,null,null,null,null,null,null,"A",null,null,null,null,"D",null,null,null,null,null,null,null,null,null,"A"]
[null,"Ménage"]
[null,"Gestion"]
[null,"Travaux"]
["Logement 7"]
[null,"Ménage"]
[null,"Gestion"]
[null,"Travaux"]
["Logement 8",null,null,null,null,null,null,null,null,null,null,null,null,null,null,"D",null,null,null,null,null,null,null,"A"]
[null,"Ménage"]
[null,"Gestion"]
[null,"Travaux"]
["Logement 9",null,null,null,null,"D",null,"A",null,null,null,"D",null,null,"A",null,null,null,null,null,null,"D",null,null,null,null,null,null,null,"A"]
[null,"Ménage"]
[null,"Gestion"]
[null,"Travaux"]
["Logement 10",null,null,null,null,null,"D/A",null,null,null,null,null,null,"D",null,null,"A"]
[null,"Ménage"]
[null,"Gestion"]
[null,"Travaux"]
["Logement 11",null,null,null,"D",null,null,"A",null,null,null,null,null,"D","A",null,null,null,null,"D",null,null,"A"]
[null,"Ménage"]
[null,"Gestion"]
[null,"Travaux",null,null,null,null,"demo ouisnet"]
["Logement 12"]
[null,"Ménage"]
[null,"Gestion"]
[null,"Travaux"]

{"sheet":"Mai 2024","index":5,"n_rows":54,"n_cols":33,"rows_kept":54,"cut":false,"hidden":false,"merged":[[3,2,3,32],[1,15,1,17],[1,18,1,20],[1,21,1,23],[1,24,1,26],[1,27,1,29],[0,0,0,1],[1,0,1,1],[1,3,1,4],[1,6,1,8],[1,10,1,13]]}
["Calendrier des locations"]
["3 codes ; puis prénoms des femmes de ménage :",null,"A","Arrivée",null,"D","Départ",null,null,"D/A","Départ / Arrivée\nsimultanés",null,null,null,null,"Caro",null,null,"Sabine",null,null,"Bénicia",null,null,"Laurène",null,null,"Raïssa"]
[]
["Mai",{"$f":"AnnéeCalendrier24","v":2024},"Dates des réservations"]
[null,null,{"$f":"TEXT(WEEKDAY(DATE($B4,5,C6),1),\"jjj\")","v":"mer"},{"$f":"TEXT(WEEKDAY(DATE($B4,5,D6),1),\"jjj\")","v":"jeu"},"ven","sam","dim","lun","mar","mer","jeu","ven","sam","dim","lun","mar","mer","jeu","ven","sam","dim","lun","mar","mer","jeu","ven","sam","dim","lun","mar","mer","jeu","ven"]
["Nom du logement","Colonne1","1","2","3","4","5","6","7","8","9","10","11","12","13","14","15","16","17","18","19","20","21","22","23","24","25","26","27","28","29","30","31"]
["Logement 1",null,null,null,null,null,null,null,null,"D","A",null,null,null,null,null,null,null,null,null,null,null,null,null,null,null,null,null,null,null,null,"D"]
[null,"Ménage"]
[null,"Gestion"]
[null,"Travaux"]
["Logement 2",null,"A","D",null,"A",null,null,null,null,"D/A",null,null,null,null,null,null,null,null,null,"D",null,"A"]
[null,"Ménage"]
[null,"Gestion"]
[null,"Travaux"]
["Logement 3",null,null,"D/A",null,null,null,null,null,null,null,null,null,null,null,null,null,null,null,null,null,"D","A",null,null,null,null,"D","A",null,null,null,"D"]
[null,"Ménage"]
[null,"Gestion"]
[null,"Travaux"]
["Logement 4",null,null,null,null,"D/A",null,null,null,null,null,null,null,null,null,"D",null,null,null,null,null,"A"]
[null,"Ménage"]
[null,"Gestion"]
[null,"Travaux"]
["Logement 5",null,null,null,null,null,null,null,null,null,null,null,null,null,null,null,null,null,null,null,null,null,null,null,null,null,null,"A",null,null,null,null,"D"]
[null,"Ménage"]
[null,"Gestion"]
[null,"Travaux"]
["Logement 6",null,null,null,null,null,null,null,null,null,null,null,null,null,null,null,"A",null,null,null,null,"D",null,null,null,null,null,null,null,null,null,"A"]
[null,"Ménage"]
[null,"Gestion"]
[null,"Travaux"]
["Logement 7"]
[null,"Ménage"]
[null,"Gestion"]
[null,"Travaux"]
["Logement 8",null,null,null,null,null,null,null,null,null,null,null,null,null,null,"D",null,null,null,null,null,null,null,"A"]
[null,"Ménage"]
[null,"Gestion"]
[null,"Travaux"]
["Logement 9",null,null,null,null,"D",null,"A",null,null,null,"D",null,null,"A",null,null,null,null,null,null,"D",null,null,null,null,null,null,null,"A"]
[null,"Ménage"]
[null,"Gestion"]
[null,"Travaux"]
["Logement 10",null,null,null,null,null,"D/A",null,null,null,null,null,null,"D",null,null,"A"]
[null,"Ménage"]
[null,"Gestion"]
[null,"Travaux"]
["Logement 11",null,null,null,"D",null,null,"A",null,null,null,null,null,"D","A",null,null,null,null,"D",null,null,"A"]
[null,"Ménage"]
[null,"Gestion"]
[null,"Travaux",null,null,null,null,"demo ouisnet"]
["Logement 12"]
[null,"Ménage"]
[null,"Gestion"]
[null,"Travaux"]

{"sheet":"Juin 2024","index":6,"n_rows":54,"n_cols":32,"rows_kept":54,"cut":false,"hidden":false,"merged":[[3,2,3,31],[1,15,1,17],[1,18,1,20],[1,21,1,23],[1,24,1,26],[1,27,1,29],[0,0,0,1],[1,0,1,1],[1,3,1,4],[1,6,1,8],[1,10,1,13]]}
["Calendrier des locations"]
["3 codes ; puis prénoms des femmes de ménage :",null,"A","Arrivée",null,"D","Départ",null,null,"D/A","Départ / Arrivée\nsimultanés",null,null,null,null,"Caro",null,null,"Sabine",null,null,"Bénicia",null,null,"Laurène",null,null,"Raïssa"]
[]
["Juin",{"$f":"AnnéeCalendrier24","v":2024},"Dates des réservations"]
[null,null,{"$f":"TEXT(WEEKDAY(DATE($B4,6,C6),1),\"jjj\")","v":"sam"},{"$f":"TEXT(WEEKDAY(DATE($B4,6,D6),1),\"jjj\")","v":"dim"},"lun","mar","mer","jeu","ven","sam","dim","lun","mar","mer","jeu","ven","sam","dim","lun","mar","mer","jeu","ven","sam","dim","lun","mar","mer","jeu","ven","sam","dim"]
["Nom du logement","Colonne1","1","2","3","4","5","6","7","8","9","10","11","12","13","14","15","16","17","18","19","20","21","22","23","24","25","26","27","28","29","30"]
["Logement 1",null,null,null,null,null,null,null,null,"D","A",null,null,null,null,null,null,null,null,null,null,null,null,null,null,null,null,null,null,null,null,"D"]
[null,"Ménage"]
[null,"Gestion"]
[null,"Travaux"]
["Logement 2",null,"A","D",null,"A",null,null,null,null,"D/A",null,null,null,null,null,null,null,null,null,"D",null,"A"]
[null,"Ménage"]
[null,"Gestion"]
[null,"Travaux"]
["Logement 3",null,null,"D/A",null,null,null,null,null,null,null,null,null,null,null,null,null,null,null,null,null,"D","A",null,null,null,null,"D","A"]
[null,"Ménage"]
[null,"Gestion"]
[null,"Travaux"]
["Logement 4",null,null,null,null,"D/A",null,null,null,null,null,null,null,null,null,"D",null,null,null,null,null,"A"]
[null,"Ménage"]
[null,"Gestion"]
[null,"Travaux"]
["Logement 5",null,null,null,null,null,null,null,null,null,null,null,null,null,null,null,null,null,null,null,null,null,null,null,null,null,null,"A"]
[null,"Ménage"]
[null,"Gestion"]
[null,"Travaux"]
["Logement 6",null,null,null,null,null,null,null,null,null,null,null,null,null,null,null,"A",null,null,null,null,"D",null,null,null,null,null,null,null,null,null,"A"]
[null,"Ménage"]
[null,"Gestion"]
[null,"Travaux"]
["Logement 7"]
[null,"Ménage"]
[null,"Gestion"]
[null,"Travaux"]
["Logement 8",null,null,null,null,null,null,null,null,null,null,null,null,null,null,"D",null,null,null,null,null,null,null,"A"]
[null,"Ménage"]
[null,"Gestion"]
[null,"Travaux"]
["Logement 9",null,null,null,null,"D",null,"A",null,null,null,"D",null,null,"A",null,null,null,null,null,null,"D",null,null,null,null,null,null,null,"A"]
[null,"Ménage"]
[null,"Gestion"]
[null,"Travaux"]
["Logement 10",null,null,null,null,null,"D/A",null,null,null,null,null,null,"D",null,null,"A"]
[null,"Ménage"]
[null,"Gestion"]
[null,"Travaux"]
["Logement 11",null,null,null,"D",null,null,"A",null,null,null,null,null,"D","A",null,null,null,null,"D",null,null,"A"]
[null,"Ménage"]
[null,"Gestion"]
[null,"Travaux",null,null,null,null,"demo ouisnet"]
["Logement 12"]
[null,"Ménage"]
[null,"Gestion"]
[null,"Travaux"]

{"sheet":"synthèse","index":7,"n_rows":9,"n_cols":6,"rows_kept":9,"cut":false,"hidden":false,"merged":[[0,5,0,6],[1,5,1,6],[2,5,2,6],[6,2,6,3],[4,5,4,6]]}
[null,"Période",null,null,null,"Codes"]
[null,"Du :",null,null,null,"A = Arrivée ; D = Départ"]
[null,"Au :",null,null,null,"D/A = Départ/Arrivée"]
[]
[null,"Type d'activité :",null,null,0,{"$f":"IF(E5=1,\"Avec tri des activités\",\"\")","v":""}]
[]
[null,"Logement :"]
[]
["Mois","Jour","Activité","Logement","C"]

{"sheet":"Employée","index":8,"n_rows":3,"n_cols":4,"rows_kept":3,"cut":false,"hidden":true,"merged":[]}
["Travaux effectués par",null,null,"en"]
[]
["Logement","Tâche","Date"]

{"sheet":"Datas","index":9,"n_rows":13,"n_cols":7,"rows_kept":13,"cut":false,"hidden":true,"merged":[]}
[null,null,"Période",null,"Noms"]
[null,null,"janv 23",null,"EMMA"]
[null,null,"février 23",null,"SABINE",null,"https://forum.excel-pratique.com/excel/lecture-des-coordonnees-d-une-cellule-en-tetes-ligne-et-colonne-186207"]
[null,null,"mars 23",null,"BENICIA"]
[null,null,"avril 23",null,"CARO"]
[null,null,"mai 23"]
[null,null,"juin 23"]
[null,null,"juillet 23"]
[null,null,"août 23"]
[null,null,"septembre 23"]
[null,null,"octobre 23"]
[null,null,"novembre 23"]
[null,null,"décembre 23"]